lending/lending_fUSD_20260330
["ID","MTS","AMOUNT","RATE_DAILY","PERIOD"]
[419070753,1774830648790,-500.0,0.00015868,2]
[419070754,1774830648800,-500.0,0.0001587,2]
[419070755,1774830648810,-500.0,0.00015871,2]
[419070756,1774830648819,-200.0,0.00015871,2]
[419070757,1774830648829,-1000.0,0.00015875,2]
[419070758,1774830648838,-1000.0,0.00015877,2]
[419070759,1774830648848,-150.0,0.00015879,2]
[419070760,1774830648857,-1592.87721993,0.00015885,2]
[419070761,1774830648867,-233.51889341,0.00015885,2]
[419070762,1774830648876,-151.0,0.00015885,2]
[419070763,1774830648885,-233.51889341,0.00015885,2]
[419070764,1774830648895,-194.72792766,0.00015885,2]
[419070765,1774830648905,-200.0,0.00015885,2]
[419070766,1774830648914,-312.13772435,0.00015885,2]
[419070767,1774830648923,-829.12830338,0.00015885,2]
[419070768,1774830648933,-2000.0,0.0001589,2]
[419070769,1774830648943,-2500.0,0.0001589,2]
[419070770,1774830648952,-1361.13017709,0.0001589,2]
[419070771,1774830648962,-1000.0,0.00015891,2]
[419070772,1774830648971,-150.0,0.00015893,2]
[419070773,1774830648981,-4000.0,0.00015895,2]
[419070774,1774830648991,-1000.0,0.00015895,2]
[419070775,1774830649001,-249.371621,0.00015897,2]
[419070776,1774830649010,-197108.88057425,0.000159,2]
[419070777,1774830649020,-38904.60631164,0.000159,2]
[419070778,1774830649030,-151.0,0.000159,2]
[419070779,1774830649040,-151.0,0.000159,2]
[419070780,1774830649051,-151.0,0.000159,2]
[419070781,1774830649061,-151.0,0.000159,2]
[419070782,1774830649070,-151.0,0.000159,2]
[419070783,1774830649080,-151.0,0.000159,2]
[419070784,1774830649090,-151.0,0.000159,2]
[419070785,1774830649099,-151.0,0.000159,2]
[419070786,1774830649108,-151.0,0.000159,2]
[419070787,1774830649119,-151.0,0.000159,2]
[419070788,1774830649129,-150.0,0.000159,2]
[419070789,1774830649139,-150.0,0.000159,2]
[419070790,1774830649149,-1691.852148,0.000159,2]
[419070791,1774830649161,-1691.852148,0.000159,2]
[419070792,1774830649170,-1691.852148,0.000159,2]
[419070793,1774830649180,-1691.852148,0.000159,2]
[419070794,1774830649189,-1127.383711,0.000159,2]
[419070795,1774830649199,-151.0,0.000159,2]
[419070796,1774830649208,-1127.383711,0.000159,2]
[419070797,1774830649217,-1127.383711,0.000159,2]
[419070798,1774830649229,-151.0,0.000159,2]
[419070799,1774830649239,-1127.383711,0.000159,2]
[419070800,1774830649248,-151.0,0.000159,2]
[419070801,1774830649257,-242.53741,0.000159,2]
[419070802,1774830649267,-150.0,0.000159,2]
[419070803,1774830649277,-436.54633,0.000159,2]
[419070804,1774830649287,-150.0,0.000159,2]
[419070805,1774830649296,-150.0,0.000159,2]
[419070806,1774830649305,-1244.0,0.000159,5]
[419070807,1774830649314,-150.0,0.000159,2]
[419070808,1774830649324,-1310.229428,0.000159,2]
[419070809,1774830649333,-1310.229428,0.000159,2]
[419070810,1774830649342,-1310.229428,0.000159,2]
[419070811,1774830649351,-1310.229428,0.000159,2]
[419070812,1774830649360,-437.37025099,0.000159,2]
[419070813,1774830649369,-6251.4295314,0.000159,2]
[419070814,1774830649378,-349.73582998,0.000159,2]
[419070815,1774830649387,-150.0,0.00015918,2]
[419070816,1774830649396,-1000.0,0.00015944,2]
[419070817,1774830649406,-1600.0,0.00015949,2]
[419070818,1774830649415,-1000.0,0.00015951,2]
[419070819,1774830649424,-1000.0,0.00015953,2]
[419070820,1774830649434,-1000.0,0.00015956,2]
[419070821,1774830649444,-1000.0,0.00015965,2]
[419070822,1774830649453,-500.0,0.00015972,2]
[419070823,1774830649462,-2000.0,0.00015972,2]
[419070824,1774830649472,-150.0,0.00015974,2]
[419070825,1774830649482,-300.0,0.00015979,2]
[419070826,1774830649492,-1000.0,0.00015979,2]
[419070827,1774830649501,-235.82509861,0.0001599,2]
[419070828,1774830649511,-1000.0,0.0001599,2]
[419070829,1774830649521,-1000.0,0.0001599,2]
[419070830,1774830649530,-1000.0,0.0001599,2]
[419070831,1774830649540,-1000.0,0.0001599,2]
[419070832,1774830649549,-1000.0,0.0001599,2]
[419070833,1774830649559,-1000.0,0.0001599,2]
[419070834,1774830649569,-1000.0,0.0001599,2]
[419070835,1774830649579,-1000.0,0.0001599,2]
[419070836,1774830649590,-1000.0,0.0001599,2]
[419070837,1774830649601,-1000.0,0.0001599,2]
[419070838,1774830649612,-1000.0,0.0001599,2]
[419070839,1774830649621,-1000.0,0.0001599,2]
[419070840,1774830649631,-1000.0,0.0001599,2]
[419070841,1774830649640,-1000.0,0.0001599,2]
[419070842,1774830649649,-1000.0,0.0001599,2]
[419070843,1774830649659,-1000.0,0.0001599,2]
[419070844,1774830649667,-1000.0,0.0001599,2]
[419070845,1774830649676,-1000.0,0.0001599,2]
[419070846,1774830649686,-1000.0,0.0001599,2]
[419070847,1774830649695,-1000.0,0.0001599,2]
[419070848,1774830649704,-1000.0,0.0001599,2]
[419070849,1774830649714,-482.25822731,0.0001599,2]
[419070850,1774830649724,-1000.0,0.00015995,2]
[419070851,1774830649733,-249.371621,0.00015997,2]
[419070852,1774830649743,-666.0,0.00015999,2]
[419070853,1774830649752,-742.99189388,0.00015999,2]
[419070854,1774830649761,-666.0,0.00015999,2]
[419070855,1774830649771,-666.0,0.00015999,2]
[419070856,1774830649780,-666.0,0.00015999,2]
[419070857,1774830649790,-200.0,0.00015999,2]
[419070858,1774830649801,-1000.0,0.00015999,2]
[419070859,1774830649811,-4509782.56587008,0.00016,2]
[419070860,1774830651152,-4175.67812515,0.00011389,2]
[419070861,1774830651161,-122094.32187485,0.00016,2]
[419070862,1774830651613,-200.0,0.0001,2]
[419070863,1774830651624,-448.80879339,0.0001,2]
[419070864,1774830651648,-107.54880622,0.0001,2]
[419070865,1774830651659,-332.0,0.00010422,2]
[419070866,1774830651669,-165.09217158,0.00013878,2]
[419070867,1774830651680,-391.26542803,0.00013878,2]
[419070868,1774830651826,-556.8622047,0.00015146,2]
[419070869,1774830652513,-4175.67812515,0.00012291,2]
[419070870,1774830652522,-341.56934882,0.00014241,2]
[419070871,1774830652532,-655.08694572,0.00014241,2]
[419070872,1774830652541,-772.1377953,0.00015146,2]
[419070873,1774830652551,-1809.86565103,0.00015146,2]
[419070874,1774830652566,-365.98806043,0.00015146,2]
[419070875,1774830652585,-306.74228854,0.00015146,2]
[419070876,1774830652594,-402.02771146,0.0001599,2]
[419070880,1774830735050,578.29,9.397e-05,2]
[419070881,1774830735076,1855.647,9.397e-05,2]
[419070882,1774830792886,152.0,9.397e-05,3]
[419070883,1774830847308,152.0,9.397e-05,3]
[419070884,1774830901126,1200.0,9.489e-05,2]
[419070885,1774830905906,163.0,9.397e-05,3]
[419070886,1774830965934,152.0,9.397e-05,3]
[419070887,1774831030122,152.0,9.397e-05,3]
[419070888,1774831087101,152.0,9.397e-05,3]
[419070889,1774831147106,152.0,9.397e-05,3]
[419070890,1774831201417,869.363,9.489e-05,2]
[419070891,1774831207535,163.0,9.397e-05,3]
[419070892,1774831207708,152.0,9.397e-05,3]
[419070893,1774831267835,152.0,9.397e-05,3]
[419070894,1774831292807,2859.958,9.392e-05,2]
[419070895,1774831292869,172.163,9.392e-05,2]
[419070896,1774831342079,1500.889,9.484e-05,2]
[419070897,1774831342103,999.111,9.484e-05,2]
[419070898,1774831474974,-330.637,9.489e-05,2]
[419070899,1774831475000,-253.0,9.489e-05,2]
[419070900,1774831475026,-245.02512687,9.49e-05,2]
[419070901,1774831475051,-240.87796198,9.562e-05,2]
[419070902,1774831475076,-500.0,9.563e-05,2]
[419070903,1774831475100,-500.0,9.563e-05,2]
[419070904,1774831475126,-500.0,9.563e-05,2]
[419070905,1774831475150,-500.0,9.563e-05,2]
[419070906,1774831475175,-150.0,9.582e-05,2]
[419070907,1774831475200,-300.0,9.582e-05,2]
[419070908,1774831475225,-3864.41693471,9.583e-05,2]
[419070909,1774831475249,-176.11202047,9.583e-05,2]
[419070910,1774831475274,-500.0,9.583e-05,2]
[419070911,1774831475299,-500.0,9.583e-05,2]
[419070912,1774831475323,-500.0,9.583e-05,2]
[419070913,1774831475348,-500.0,9.583e-05,2]
[419070914,1774831475372,-522.72555829,9.583e-05,2]
[419070915,1774831475404,-500.0,9.583e-05,2]
[419070916,1774831475434,-500.0,9.583e-05,2]
[419070917,1774831475464,-500.0,9.583e-05,2]
[419070918,1774831475495,-500.0,9.583e-05,2]
[419070919,1774831475525,-500.0,9.583e-05,2]
[419070920,1774831475555,-500.0,9.583e-05,2]
[419070921,1774831475586,-500.0,9.583e-05,2]
[419070922,1774831475617,-500.0,9.583e-05,2]
[419070923,1774831475647,-500.0,9.583e-05,2]
[419070924,1774831475678,-270.44121829,9.583e-05,2]
[419070925,1774831475709,-500.0,9.583e-05,2]
[419070926,1774831475739,-500.0,9.583e-05,2]
[419070927,1774831475770,-500.0,9.583e-05,2]
[419070928,1774831475802,-500.0,9.583e-05,2]
[419070929,1774831475832,-500.0,9.583e-05,2]
[419070930,1774831475863,-500.0,9.583e-05,2]
[419070931,1774831475893,-500.0,9.583e-05,2]
[419070932,1774831475924,-500.0,9.583e-05,2]
[419070933,1774831475950,-257.53688297,9.583e-05,2]
[419070934,1774831475981,-500.0,9.583e-05,2]
[419070935,1774831476008,-289.62729642,9.583e-05,2]
[419070937,1774831503762,2500.0,9.484e-05,2]
[419070938,1774831506793,164.0,9.397e-05,3]
[419070941,1774831588157,150.0,0.00019351,120]
[419070945,1774831631204,1336.899,9.484e-05,2]
[419070946,1774831631231,5000.01,9.484e-05,2]
[419070947,1774831631259,5000.01,9.484e-05,2]
[419070948,1774831631286,5000.01,9.484e-05,2]
[419070949,1774831631314,5000.01,9.484e-05,2]
[419070950,1774831646179,-2554.96046548,9.484e-05,2]
[419070951,1774831646253,-5000.01,9.484e-05,2]
[419070952,1774831648555,-5000.01,9.484e-05,2]
[419070953,1774831648667,-5000.01,9.484e-05,2]
[419070954,1774831651632,-5000.01,9.474e-05,2]
[419070955,1774831651730,-5000.01,9.474e-05,2]
[419070956,1774831663003,700.0,9.299e-05,2]
[419070957,1774831713367,151.72,7.537e-05,2]
[419070980,1774831738764,263.62,0.00010384,30]
[419070981,1774831779178,-200.0,9.6e-05,3]
[419070982,1774831790729,-300.0,9.473e-05,2]
[419070983,1774831790758,-300.0,9.473e-05,2]
[419070984,1774831790787,-2074.0,9.474e-05,2]
[419070988,1774831832392,-300.0,9.473e-05,2]
[419070989,1774831832402,-1200.0,9.473e-05,2]
[419070990,1774831832412,-252.0,9.474e-05,2]
[419070991,1774831832422,-14747.40427334,9.474e-05,2]
[419070992,1774831832432,-150.0,9.483e-05,2]
[419070993,1774831832441,-500.0,9.483e-05,2]
[419070994,1774831832451,-500.0,9.483e-05,2]
[419070995,1774831832461,-500.0,9.483e-05,2]
[419070996,1774831832470,-500.0,9.483e-05,2]
[419070997,1774831832481,-430.414,9.483e-05,2]
[419070998,1774831832491,-324.58643734,9.483e-05,2]
[419070999,1774831832500,-500.0,9.483e-05,2]
[419071000,1774831832510,-500.0,9.483e-05,2]
[419071001,1774831832519,-500.0,9.483e-05,2]
[419071002,1774831832529,-194.8859806,9.483e-05,2]
[419071003,1774831832539,-500.0,9.483e-05,2]
[419071004,1774831832550,-151.3416698,9.483e-05,2]
[419071005,1774831832560,-2154.61873815,9.484e-05,2]
[419071006,1774831832569,-12086.42509527,9.484e-05,2]
[419071007,1774831832580,-1254.41808677,9.484e-05,2]
[419071008,1774831832662,-502.83044519,9.484e-05,2]
[419071010,1774831832715,-402.699828,9.484e-05,2]
[419071011,1774831832727,-3320.20408549,9.484e-05,2]
[419071012,1774831832738,-314.24986745,9.484e-05,2]
[419071043,1774831838421,-170060.38512635,9.484e-05,2]
[419071044,1774831838432,-2500.0,9.484e-05,2]
[419071045,1774831838443,-500.0,9.563e-05,2]
[419071046,1774831838454,-500.64843314,9.563e-05,2]
[419071047,1774831838464,-500.32969063,9.563e-05,2]
[419071048,1774831838474,-500.0,9.563e-05,2]
[419071049,1774831838484,-500.0,9.563e-05,2]
[419071050,1774831838493,-500.0,9.563e-05,2]
[419071051,1774831838503,-500.0,9.563e-05,2]
[419071052,1774831838514,-500.0,9.563e-05,2]
[419071053,1774831838523,-1000.0,9.583e-05,2]
[419071054,1774831838532,-500.0,9.583e-05,2]
[419071055,1774831838542,-265.9078908,9.583e-05,2]
[419071056,1774831838551,-500.0,9.583e-05,2]
[419071057,1774831838560,-500.0,9.583e-05,2]
[419071058,1774831838569,-180.27581808,9.583e-05,2]
[419071059,1774831838579,-500.0,9.583e-05,2]
[419071060,1774831838588,-613.05396248,9.583e-05,2]
[419071061,1774831838597,-500.0,9.583e-05,2]
[419071062,1774831838609,-1000.0,9.584e-05,2]
[419071063,1774831838619,-18891.17675676,9.584e-05,2]
[419071064,1774831838673,-2859.38408532,9.584e-05,2]
[419071065,1774831838727,-3408.69456906,9.584e-05,2]
[419071066,1774831838738,-1344.11256042,9.584e-05,2]
[419071067,1774831838751,-3058.34083143,9.584e-05,2]
[419071068,1774831838764,-3696.05118389,9.584e-05,2]
[419071069,1774831838775,-850.77553865,9.584e-05,2]
[419071070,1774831838786,-3174.71631987,9.584e-05,2]
[419071127,1774831840680,-1029.67326749,9.584e-05,2]
[419071128,1774831840691,-3114.16252253,9.584e-05,2]
[419071129,1774831840776,-1458572.91236458,9.584e-05,2]
[419071130,1774831840785,-10000.0,9.584e-05,2]
[419071131,1774831840795,-150.0,9.6e-05,2]
[419071132,1774831840804,-9999.99,9.6e-05,2]
[419071133,1774831840814,-861.52,9.6e-05,2]
[419071134,1774831840823,-1030.97,9.6e-05,2]
[419071135,1774831840833,-347.0,9.644e-05,2]
[419071136,1774831840843,-500.0,9.663e-05,2]
[419071137,1774831840852,-477.40326544,9.663e-05,2]
[419071138,1774831840862,-199.497296,9.681e-05,2]
[419071139,1774831840872,-199.497296,9.681e-05,2]
[419071140,1774831840881,-199.497296,9.681e-05,2]
[419071141,1774831840890,-400.0,9.7e-05,3]
[419071142,1774831840900,-98643.58,9.795e-05,2]
[419071143,1774831840910,-600.0,9.8e-05,3]
[419071144,1774831840919,-1390.0,9.821e-05,2]
[419071145,1774831840929,-535.25,9.87e-05,2]
[419071146,1774831840938,-800.0,9.9e-05,3]
[419071147,1774831840948,-168.02663414,0.0001,2]
[419071148,1774831840957,-207.7374533,0.0001,2]
[419071149,1774831840968,-150.99,0.0001,2]
[419071150,1774831840977,-258.31196093,0.0001,2]
[419071151,1774831840987,-500.0,0.0001,2]
[419071152,1774831840997,-500.0,0.0001,2]
[419071153,1774831841006,-500.0,0.0001,2]
[419071154,1774831841015,-500.0,0.0001,2]
[419071155,1774831841024,-500.0,0.0001,2]
[419071156,1774831841034,-500.0,0.0001,2]
[419071157,1774831841043,-500.0,0.0001,2]
[419071158,1774831841054,-500.0,0.0001,2]
[419071159,1774831841064,-500.0,0.0001,2]
[419071160,1774831841073,-200.0,0.0001,2]
[419071161,1774831841082,-500.0,0.0001,2]
[419071162,1774831841092,-500.0,0.0001,2]
[419071163,1774831841101,-176.03287796,0.0001,2]
[419071164,1774831841111,-1100.0,0.0001,3]
[419071165,1774831841120,-151.0,0.0001,2]
[419071166,1774831841482,-151.0,0.0001,2]
[419071167,1774831841491,-151.0,0.0001,2]
[419071168,1774831841501,-151.0,0.0001,2]
[419071169,1774831841511,-151.0,0.0001,2]
[419071170,1774831841522,-151.0,0.0001,2]
[419071171,1774831841532,-151.0,0.0001,2]
[419071172,1774831841543,-151.0,0.0001,2]
[419071173,1774831841553,-151.0,0.0001,2]
[419071174,1774831841562,-151.0,0.0001,2]
[419071175,1774831841571,-500.0,0.0001,2]
[419071176,1774831841580,-151.0,0.0001,2]
[419071177,1774831841590,-500.0,0.0001,2]
[419071178,1774831841600,-500.0,0.0001,2]
[419071179,1774831841609,-500.0,0.0001,2]
[419071180,1774831841619,-500.0,0.0001,2]
[419071181,1774831841629,-500.0,0.0001,2]
[419071182,1774831841640,-500.0,0.0001,2]
[419071183,1774831841650,-500.0,0.0001,2]
[419071184,1774831841659,-500.0,0.0001,2]
[419071185,1774831841670,-500.0,0.0001,2]
[419071186,1774831841679,-500.0,0.0001,2]
[419071187,1774831841689,-151.0,0.0001,2]
[419071188,1774831841699,-217.36103779,0.0001,2]
[419071189,1774831841708,-1760.0,0.00010169,2]
[419071190,1774831841718,-895.13960355,0.00010211,2]
[419071191,1774831841727,-166.66,0.00010413,2]
[419071192,1774831841738,-227.0,0.0001042,2]
[419071193,1774831841747,-420.0,0.0001042,2]
[419071194,1774831841757,-1680.0,0.0001042,2]
[419071195,1774831841766,-255.0,0.00010431,2]
[419071196,1774831841776,-1115.0,0.00010506,2]
[419071197,1774831841787,-151.0,0.00010544,2]
[419071198,1774831841798,-200.0,0.00010548,2]
[419071199,1774831841808,-151.0,0.00010548,2]
[419071200,1774831841817,-2000.0,0.00010733,2]
[419071201,1774831841828,-166.66,0.00010757,2]
[419071202,1774831841838,-1600.0,0.00010861,2]
[419071203,1774831841848,-150.0,0.00010959,2]
[419071204,1774831841858,-196.7906,0.00011,2]
[419071205,1774831841867,-150.0,0.00011048,2]
[419071206,1774831841877,-252.699828,0.00011049,2]
[419071207,1774831841886,-1115.0,0.00011059,2]
[419071208,1774831841897,-1270.0,0.00011076,2]
[419071209,1774831841907,-200.0,0.00011096,2]
[419071210,1774831841917,-5620.4147506,0.00011099,2]
[419071211,1774831841927,-5620.41475057,0.00011099,2]
[419071212,1774831841937,-5620.41475057,0.00011099,2]
[419071213,1774831841946,-3774.88240901,0.00011099,2]
[419071214,1774831841956,-3774.88240895,0.00011099,2]
[419071215,1774831841965,-3774.88240895,0.00011099,2]
[419071216,1774831841975,-166.66,0.00011101,2]
[419071217,1774831841984,-24351.55,0.00011355,2]
[419071218,1774831841994,-166.66,0.00011444,2]
[419071219,1774831842003,-503.0,0.00011452,2]
[419071220,1774831842012,-587.0,0.00011462,2]
[419071221,1774831842022,-2351.0,0.00011462,2]
[419071222,1774831842031,-433.0,0.00011475,2]
[419071223,1774831842041,-3774.88240895,0.00011623,2]
[419071224,1774831842050,-5620.41475057,0.00011623,2]
[419071225,1774831842060,-1115.0,0.00011642,2]
[419071226,1774831842070,-200.0,0.00011644,2]
[419071227,1774831842080,-166.66,0.00011788,2]
[419071228,1774831842090,-500.0,0.00011863,2]
[419071229,1774831842100,-500.0,0.00012055,2]
[419071230,1774831842110,-2000.0,0.00012075,2]
[419071231,1774831842119,-166.66,0.00012132,2]
[419071232,1774831842128,-1600.0,0.00012218,2]
[419071233,1774831842137,-1115.0,0.00012254,2]
[419071234,1774831842147,-3774.88240895,0.00012336,2]
[419071235,1774831842156,-5620.41475057,0.00012336,2]
[419071236,1774831842166,-258.1771,0.000124,2]
[419071237,1774831842175,-250.0,0.00012517,2]
[419071238,1774831842184,-823.0,0.00012609,2]
[419071239,1774831842194,-3292.0,0.00012609,2]
[419071240,1774831842203,-736.0,0.00012622,2]
[419071241,1774831842213,-258.31196093,0.00012692,2]
[419071242,1774831842222,-578.20924308,0.0001272,2]
[419071243,1774831842232,-500.0,0.0001272,2]
[419071244,1774831842241,-500.0,0.0001272,2]
[419071245,1774831842250,-1428.38747117,0.0001272,2]
[419071246,1774831842260,-500.0,0.0001272,2]
[419071247,1774831842270,-9552.16786547,0.0001272,2]
[419071248,1774831842279,-151.0,0.0001272,2]
[419071249,1774831842289,-500.0,0.0001272,2]
[419071250,1774831842298,-500.0,0.0001272,2]
[419071251,1774831842307,-500.0,0.0001272,2]
[419071252,1774831842316,-500.0,0.0001272,2]
[419071253,1774831842325,-500.0,0.0001272,2]
[419071254,1774831842335,-209.40437684,0.0001272,2]
[419071255,1774831842344,-500.0,0.0001272,2]
[419071256,1774831842353,-500.0,0.0001272,2]
[419071257,1774831842362,-500.0,0.0001272,2]
[419071258,1774831842371,-500.0,0.0001272,2]
[419071259,1774831842381,-209.40437684,0.0001272,2]
[419071260,1774831842391,-500.0,0.0001272,2]
[419071261,1774831842400,-500.0,0.0001272,2]
[419071262,1774831842409,-500.0,0.0001272,2]
[419071263,1774831842418,-174.61919141,0.0001272,2]
[419071264,1774831842427,-500.0,0.0001272,2]
[419071265,1774831842437,-500.0,0.0001272,2]
[419071266,1774831842446,-500.0,0.0001272,2]
[419071267,1774831842455,-500.0,0.0001272,2]
[419071268,1774831842464,-500.0,0.0001272,2]
[419071269,1774831842473,-500.0,0.0001272,2]
[419071270,1774831842483,-500.0,0.0001272,2]
[419071271,1774831842492,-500.0,0.0001272,2]
[419071272,1774831842502,-500.0,0.0001272,2]
[419071273,1774831842514,-500.0,0.0001272,2]
[419071274,1774831842523,-500.0,0.0001272,2]
[419071275,1774831842532,-151.0,0.0001272,2]
[419071276,1774831842541,-500.0,0.0001272,2]
[419071277,1774831842551,-500.0,0.0001272,2]
[419071278,1774831842560,-500.0,0.0001272,2]
[419071279,1774831842569,-500.0,0.0001272,2]
[419071280,1774831842579,-500.0,0.0001272,2]
[419071281,1774831842590,-500.0,0.0001272,2]
[419071282,1774831842599,-500.0,0.0001272,2]
[419071283,1774831842609,-500.0,0.0001272,2]
[419071284,1774831842620,-250.0,0.0001272,2]
[419071285,1774831842630,-250.0,0.0001272,2]
[419071286,1774831842640,-250.0,0.0001272,2]
[419071287,1774831842651,-279.9045709,0.0001272,2]
[419071288,1774831842660,-250.0,0.0001272,2]
[419071289,1774831842669,-262.90206542,0.0001272,2]
[419071290,1774831842678,-250.0,0.0001272,2]
[419071291,1774831842688,-250.0,0.0001272,2]
[419071292,1774831842697,-250.0,0.0001272,2]
[419071293,1774831842707,-250.0,0.0001272,2]
[419071294,1774831842718,-250.0,0.0001272,2]
[419071295,1774831842728,-250.0,0.0001272,2]
[419071296,1774831842737,-250.0,0.0001272,2]
[419071297,1774831842747,-743.50770149,0.0001272,2]
[419071298,1774831842756,-500.0,0.0001272,2]
[419071299,1774831842765,-500.0,0.0001272,2]
[419071300,1774831842774,-500.0,0.0001272,2]
[419071301,1774831842783,-500.0,0.0001272,2]
[419071302,1774831842792,-500.0,0.0001272,2]
[419071303,1774831842801,-500.0,0.00012775,2]
[419071304,1774831842811,-9905.5980765,0.00012775,2]
[419071305,1774831842820,-151.0,0.00012775,2]
[419071306,1774831842829,-272.62944185,0.00012775,2]
[419071307,1774831842838,-1000.0,0.00012791,2]
[419071308,1774831842847,-500.0,0.0001283,2]
[419071309,1774831842855,-10272.10520533,0.0001283,2]
[419071310,1774831842864,-151.0,0.0001283,2]
[419071311,1774831842874,-282.71673119,0.0001283,2]
[419071312,1774831842883,-500.0,0.00012885,2]
[419071313,1774831842892,-10652.17309792,0.00012885,2]
[419071314,1774831842901,-151.0,0.00012885,2]
[419071315,1774831842911,-293.17725025,0.00012885,2]
[419071316,1774831842919,-1115.0,0.00012899,2]
[419071317,1774831842929,-500.0,0.0001294,2]
[419071318,1774831842938,-11046.30350255,0.0001294,2]
[419071319,1774831842947,-151.0,0.0001294,2]
[419071320,1774831842956,-304.02480851,0.0001294,2]
[419071321,1774831842966,-500.0,0.00012995,2]
[419071322,1774831842976,-11455.01673214,0.00012995,2]
[419071323,1774831842986,-151.0,0.00012995,2]
[419071324,1774831842997,-315.27372642,0.00012995,2]
[419071325,1774831843008,-250.0,0.00013,2]
[419071326,1774831843017,-163.13010789,0.00013,2]
[419071327,1774831843027,-3774.88240895,0.00013048,2]
[419071328,1774831843037,-5620.41475057,0.00013048,2]
[419071329,1774831843047,-500.0,0.0001305,2]
[419071330,1774831843057,-11878.85235123,0.0001305,2]
[419071331,1774831843067,-151.0,0.0001305,2]
[419071332,1774831843076,-326.9388543,0.0001305,2]
[419071333,1774831843087,-500.0,0.00013096,2]
[419071334,1774831843096,-500.0,0.00013105,2]
[419071335,1774831843107,-12318.36988823,0.00013105,2]
[419071336,1774831843117,-151.0,0.00013105,2]
[419071337,1774831843127,-339.03559191,0.00013105,2]
[419071338,1774831843136,-500.0,0.0001316,2]
[419071339,1774831843146,-12774.14957409,0.0001316,2]
[419071340,1774831843155,-151.0,0.0001316,2]
[419071341,1774831843164,-500.0,0.00013215,2]
[419071342,1774831843174,-13246.79310833,0.00013215,2]
[419071343,1774831843183,-151.0,0.00013215,2]
[419071344,1774831843192,-151.0,0.00013268,2]
[419071345,1774831843202,-1481.23780761,0.00013268,2]
[419071346,1774831843211,-217.15233878,0.00013268,2]
[419071347,1774831843220,-287.02861488,0.00013268,2]
[419071348,1774831843230,-331.03307376,0.00013268,2]
[419071349,1774831843240,-771.01748645,0.00013268,2]
[419071350,1774831843249,-500.0,0.0001327,2]
[419071351,1774831843259,-4184.75658788,0.0001327,2]
[419071352,1774831843268,-151.0,0.0001327,2]
[419071353,1774831843277,-2000.0,0.00013417,2]
[419071354,1774831843287,-1600.0,0.00013576,2]
[419071355,1774831843296,-1115.0,0.00013578,2]
[419071356,1774831843306,-348.91871247,0.000136,2]
[419071357,1774831843315,-500.0,0.00013698,2]
[419071358,1774831843326,-500.0,0.00013698,2]
[419071359,1774831843334,-500.0,0.00013698,2]
[419071360,1774831843344,-500.0,0.00013698,2]
[419071361,1774831843353,-500.0,0.00013698,2]
[419071362,1774831843363,-500.0,0.00013698,2]
[419071363,1774831843373,-500.0,0.00013698,2]
[419071364,1774831843382,-500.0,0.00013698,2]
[419071366,1774831843392,-500.0,0.00013698,2]
[419071367,1774831843402,-200.0,0.00013699,2]
[419071368,1774831843411,-354.69381036,0.00013699,2]
[419071369,1774831843421,-220.41161421,0.00013699,2]
[419071370,1774831843432,-500.0,0.00013699,2]
[419071371,1774831843441,-239.03013435,0.00013699,2]
[419071373,1774831843451,-500.0,0.00013699,2]
[419071375,1774831843460,-500.0,0.00013699,2]
[419071376,1774831843470,-500.0,0.00013699,2]